bitfinex-derivatives/quotes_SOLF0:USTF0_20241025
["timestamp","ask_amount","ask_price","bid_price","bid_amount"]
[1729896065319,9.23010785,166.62,166.58,9.23010785]
[1729896065520,9.23010785,166.62,166.58,13.61010785]
[1729896065824,9.23010785,166.64,166.58,16.61660785]
[1729896066021,9.23010785,166.64,166.58,13.61010785]
[1729896066922,3.0061,166.61,166.58,13.61010785]
[1729896067323,3.0061,166.61,166.58,4.38]
[1729896069721,3.0061,166.61,166.58,7.3864]
[1729896070021,3.0061,166.6,166.58,4.38]
[1729896070720,9.23010785,166.62,166.58,4.38]
[1729896071328,9.23010785,166.62,166.56,9.23010785]
[1729896071531,9.23010785,166.62,166.57,4.38]
[1729896072224,3.0062,166.6,166.57,7.3867]
[1729896072924,3.0062,166.6,166.58,9.23010785]
[1729896073425,9.23010785,166.63,166.58,9.23010785]
[1729896073621,3.0061,166.61,166.58,12.23650785]
[1729896073820,9.23010785,166.63,166.58,9.23010785]
[1729896074127,3.0062,166.6,166.58,9.23010785]
[1729896075626,3.0065,166.59,166.57,4.38]
[1729896076022,3.0065,166.59,166.57,13.61010785]
[1729896076430,3.0062,166.6,166.57,16.61670785]
[1729896077131,2.89,166.59,166.57,16.61670785]
[1729896078227,2.89,166.59,166.58,9.23010785]
[1729896079728,2.89,166.59,166.58,12.23660785]
[1729896081019,3.7284,166.67,166.62,3.0056]
[1729896081231,3.7284,166.67,166.63,13.61010785]
[1729896081421,3.0051,166.66,166.63,13.61010785]
[1729896081620,3.7284,166.67,166.63,13.61010785]
[1729896082026,1.2793,166.67,166.64,12.23540785]
[1729896082328,69.81161829,166.7,166.65,9.23010785]
[1729896083533,69.81161829,166.7,166.66,3.0049]
[1729896083729,69.81161829,166.7,166.67,4.38]
[1729896084231,2.5938,166.73,166.65,9.23010785]
[1729896084425,2.5938,166.73,166.66,4.38]
[1729896084631,3.0048,166.68,166.67,4.38]
[1729896087826,3.0048,166.68,166.55,53.8983042]
[1729896087827,9.23010785,166.68,166.63,4.38]
[1729896088030,9.23010785,166.66,166.62,4.38]
[1729896088432,3.0055,166.64,166.62,4.38]
[1729896088627,1.2376,166.67,166.62,4.38]
[1729896088628,9.23010785,166.66,166.62,4.38]
[1729896089027,3.0055,166.64,166.62,4.38]
[1729896091744,3.0056,166.63,166.62,4.38]
[1729896094134,3.0056,166.63,166.61,4.38]
[1729896094326,9.23010785,166.64,166.61,4.38]
[1729896095135,2.4281,166.66,166.61,4.38]
[1729896095336,10.46770785,166.67,166.61,13.61010785]
[1729896096232,3.0054,166.64,166.61,16.61590785]
[1729896097439,3.0054,166.64,166.61,7.3858]
[1729896097646,3.0054,166.64,166.62,9.23010785]
[1729896099542,10.46770785,166.67,166.62,9.23010785]
[1729896099543,3.0053,166.65,166.62,12.23580785]
[1729896099742,3.0053,166.65,166.62,9.23010785]
[1729896099937,10.46770785,166.67,166.61,4.38]
[1729896100132,9.23010785,166.66,166.61,4.38]
[1729896101449,3.0054,166.64,166.61,7.3859]
[1729896101641,9.23010785,166.66,166.61,4.38]
[1729896101942,3.0058,166.62,166.61,4.38]
[1729896103734,11.84720785,166.65,166.55,53.8983042]
[1729896104048,9.23010785,166.6,166.56,4.38]
[1729896104247,9.23010785,166.6,166.57,4.38]
[1729896104849,3.0066,166.58,166.57,4.38]
[1729896105949,3.0066,166.58,166.49,1.2281]
[1729896106249,3.0066,166.58,166.55,12.23710785]
[1729896106553,3.0066,166.58,166.56,4.38]
[1729896107046,3.0063,166.59,166.56,4.38]
[1729896113654,3.0063,166.59,166.56,13.61010785]
[1729896114658,3.0061,166.61,166.57,12.23660785]
[1729896115643,3.0061,166.61,166.58,12.23650785]
[1729896117148,3.0055,166.64,166.6,3.0061]
[1729896117347,11.84720785,166.65,166.6,13.61010785]
[1729896117749,1.2376,166.67,166.61,9.23010785]
[1729896117948,10.46770785,166.67,166.61,9.23010785]
[1729896118161,1.2376,166.67,166.61,9.23010785]
[1729896118453,3.0052,166.65,166.62,3.0056]
[1729896118756,10.46770785,166.67,166.62,3.0056]
[1729896119449,3.0052,166.66,166.62,3.0056]
[1729896119650,10.46770785,166.67,166.62,3.0056]
[1729896120148,3.0051,166.66,166.63,9.23010785]
[1729896120348,3.0051,166.66,166.64,4.38]
[1729896120550,10.46770785,166.67,166.64,4.38]
[1729896121349,3.005,166.66,166.64,4.38]
[1729896122446,3.0052,166.65,166.64,4.38]
[1729896124951,9.23010785,166.66,166.61,9.23010785]
[1729896125179,9.23010785,166.65,166.61,4.38]
[1729896126158,3.0057,166.63,166.61,4.38]
[1729896126964,3.0061,166.61,166.6,4.38]
[1729896127554,3.0061,166.61,166.53,9.23010785]
[1729896127555,9.23010785,166.61,166.53,9.23010785]
[1729896127756,1.2376,166.67,166.48,1.2262]
[1729896127757,9.23010785,166.55,166.48,1.2262]
[1729896127947,3.0075,166.53,166.49,18.12215777]
[1729896128148,3.0075,166.53,166.5,1.50394992]
[1729896128353,3.0075,166.53,166.51,1.50394992]
[1729896128554,3.0075,166.53,166.49,16.61820785]
[1729896128857,3.0075,166.53,166.5,1.50404807]
[1729896129058,3.0075,166.53,166.49,16.61820785]
[1729896129363,3.0075,166.53,166.5,1.50405749]
[1729896129563,3.0075,166.53,166.49,16.61820785]
[1729896129753,3.0075,166.53,166.5,1.50405046]
[1729896129954,3.0075,166.53,166.49,16.61820785]
[1729896130256,9.23010785,166.55,166.5,5.8840507]
[1729896130466,9.23010785,166.55,166.5,4.38]
[1729896131162,3.0072,166.54,166.5,4.38]
[1729896133051,3.0076,166.52,166.51,4.38]
[1729896133250,9.23010785,166.54,166.48,12.23830785]
[1729896133251,9.23010785,166.54,166.5,4.38]
[1729896133451,9.23010785,166.52,166.5,4.38]
[1729896133652,9.23010785,166.51,166.4,1.2102]
[1729896133861,9.23010785,166.48,166.42,9.23010785]
[1729896134164,9.23010785,166.48,166.43,5.88446204]
[1729896134165,3.0087,166.46,166.43,5.88446204]
[1729896134364,9.23010785,166.46,166.44,1.50446204]
[1729896134563,9.23010785,166.46,166.43,4.38]
[1729896135059,9.23010785,166.46,166.41,9.23010785]
[1729896135060,3.009,166.45,166.41,9.23010785]
[1729896135266,3.009,166.45,166.42,5.88467519]
[1729896135466,3.009,166.45,166.42,4.38]
[1729896136163,3.009,166.45,166.4,3.0096]
[1729896136354,3.009,166.44,166.41,5.88468148]
[1729896136561,9.23010785,166.45,166.39,12.24000785]
[1729896136758,9.23010785,166.45,166.4,5.88487377]
[1729896136960,3.0094,166.42,166.4,4.38]
[1729896137668,3.0096,166.41,166.4,4.38]
[1729896137864,9.23010785,166.42,166.37,58.4]
[1729896138066,9.23010785,166.4,166.38,4.38]
[1729896138367,4.24046981,166.5,166.36,4.38]
[1729896138368,12.24000785,166.39,166.36,4.38]
[1729896139059,12.24000785,166.39,166.36,5.88513035]
[1729896139261,12.24000785,166.39,166.35,5.88513035]
[1729896139561,3.0099,166.39,166.35,15.1152382]
[1729896139762,3.0099,166.39,166.35,13.61010785]
[1729896140673,6.9739,166.45,166.35,13.61010785]
[1729896140867,9.23010785,166.41,166.36,13.61010785]
[1729896142370,3.0099,166.39,166.36,13.61010785]
[1729896144270,3.0098,166.4,166.36,13.61010785]
[1729896144465,6.9739,166.45,166.36,13.61010785]
[1729896144466,2.5939,166.45,166.38,9.23010785]
[1729896144770,9.23010785,166.44,166.38,9.23010785]
[1729896144965,3.0093,166.43,166.38,9.23010785]
[1729896145866,12.23910785,166.44,166.38,9.23010785]
[1729896146369,12.23910785,166.44,166.4,3.0097]
[1729896146577,12.23910785,166.44,166.4,7.3897]
[1729896146765,3.009,166.44,166.4,7.3897]
[1729896146972,2.5939,166.45,166.4,13.61010785]
[1729896147168,11.82400785,166.45,166.4,13.61010785]
[1729896147373,5.6188,166.5,166.43,3.0091]
[1729896147602,9.23010785,166.46,166.43,3.0091]
[1729896148180,3.0086,166.47,166.43,3.0091]
[1729896148472,9.23010785,166.46,166.41,9.23010785]
[1729896148778,12.23900785,166.45,166.41,3.0095]
[1729896150268,9.23010785,166.45,166.4,4.38]
[1729896150469,3.009,166.44,166.4,7.3897]
[1729896151166,12.23910785,166.44,166.4,7.3897]
[1729896154975,12.23910785,166.44,166.41,3.0096]
[1729896155165,3.009,166.44,166.41,3.0096]
[1729896155369,3.0089,166.45,166.41,3.0096]
[1729896156170,3.0092,166.43,166.4,4.38]
[1729896156374,9.23010785,166.42,166.4,4.38]
[1729896157379,12.23960785,166.42,166.4,4.38]
[1729896157776,12.23960785,166.42,166.39,3.0099]
[1729896158004,12.23960785,166.42,166.38,3.0101]
[1729896158181,12.23960785,166.42,166.38,7.3901]
[1729896160376,2.5729,166.47,166.21,18.06]
[1729896160582,12.24010785,166.39,166.35,3.0106]
[1729896160883,12.24010785,166.39,166.36,4.38]
[1729896163187,12.24010785,166.39,166.36,7.3905]
[1729896163384,12.24010785,166.39,166.36,3.0105]
[1729896163578,12.24010785,166.39,166.36,7.3905]
[1729896163883,12.24010785,166.39,166.36,4.38]
[1729896165884,3.01,166.39,166.36,7.3905]
[1729896167683,9.23010785,166.43,166.37,9.23010785]
[1729896167881,2.5729,166.47,166.37,9.23010785]
[1729896168083,9.23010785,166.44,166.4,3.0097]
[1729896168390,9.23010785,166.44,166.4,4.38]
[1729896168887,3.0093,166.43,166.4,4.38]
[1729896169083,9.23010785,166.42,166.4,4.38]
[1729896169286,9.23010785,166.42,166.4,7.3896]
[1729896169876,9.23010785,166.42,166.4,4.38]
[1729896170187,9.23010785,166.42,166.41,3.0096]
[1729896172582,3.0096,166.41,166.4,4.38]
[1729896172881,12.23970785,166.41,166.4,4.38]
[1729896173082,9.23010785,166.41,166.37,4.38]
[1729896173382,12.24000785,166.4,166.37,7.3901]
[1729896177686,12.23970785,166.41,166.37,7.3901]
[1729896187792,9.23010785,166.42,166.38,3.0099]
[1729896187986,9.23010785,166.42,166.37,4.38]
[1729896188791,9.23010785,166.4,166.37,4.38]
[1729896189601,12.23990785,166.4,166.37,7.3902]
[1729896190695,12.23990785,166.4,166.37,3.0102]
[1729896191398,3.0098,166.4,166.37,3.0102]
[1729896194100,12.23980785,166.41,166.37,3.0102]
[1729896196704,9.23010785,166.41,166.37,3.0102]
[1729896196902,3.0097,166.4,166.37,3.0102]
[1729896197202,3.0097,166.4,166.38,1.50509563]
[1729896197401,3.0097,166.4,166.37,3.0102]
[1729896197702,3.0097,166.4,166.38,1.50510266]
[1729896197902,3.0097,166.4,166.37,3.0102]
[1729896198090,3.0097,166.4,166.38,1.50510244]
[1729896198295,3.0097,166.4,166.37,3.0102]
[1729896198494,3.0097,166.4,166.38,1.5050954]
[1729896198697,3.0097,166.4,166.37,3.0102]
[1729896198996,3.0097,166.4,166.38,1.5050954]
[1729896199303,3.0097,166.4,166.39,1.5050954]
[1729896200299,3.0097,166.4,166.37,3.0102]
[1729896200499,3.0097,166.4,166.38,1.50508736]
[1729896200800,3.0097,166.4,166.39,1.50508736]
[1729896201099,9.23010785,166.41,166.39,1.50508736]
[1729896201305,9.23010785,166.42,166.38,3.0101]
[1729896201495,9.23010785,166.42,166.39,1.5050608]
[1729896201697,9.23010785,166.42,166.4,1.5050608]
[1729896201897,12.23960785,166.42,166.41,1.5050608]
[1729896204609,3.0095,166.42,166.41,1.5050608]
[1729896204829,12.23960785,166.42,166.41,1.5050608]
[1729896205105,12.23960785,166.42,166.41,1.50503565]
[1729896205304,12.23930785,166.43,166.41,1.50503881]
[1729896205512,12.23930785,166.43,166.42,1.50503881]
[1729896206909,9.23010785,166.43,166.42,1.50503881]
[1729896207806,3.0091,166.44,166.42,1.50503881]
[1729896208006,3.0091,166.44,166.41,3.0095]
[1729896208007,12.23920785,166.44,166.43,1.50503881]
[1729896208908,3.0091,166.44,166.43,1.50503881]
[1729896209103,3.0091,166.44,166.43,5.88503881]
[1729896209311,9.23010785,166.45,166.43,5.88503881]
[1729896209510,12.23900785,166.45,166.44,1.50503881]
[1729896212414,12.23900785,166.45,166.43,4.38]
[1729896212725,12.23900785,166.45,166.44,1.50478746]
[1729896213021,12.23890785,166.45,166.44,1.50478746]
[1729896215618,9.23010785,166.45,166.27,58.42]
[1729896215811,9.23010785,166.39,166.36,3.0103]
[1729896216007,9.23010785,166.39,166.37,4.38]
[1729896218514,9.23010785,166.38,166.37,4.38]
[1729896219516,9.23010785,166.38,166.32,9.23010785]
[1729896219713,9.23010785,166.38,166.35,4.38]
[1729896220216,9.23010785,166.38,166.35,7.3906]
[1729896220908,9.23010785,166.36,166.35,4.38]
[1729896224111,9.23010785,166.36,166.34,3.0108]
[1729896224317,9.23010785,166.36,166.34,7.3908]
[1729896225017,9.23010785,166.36,166.34,4.38]
[1729896225331,9.23010785,166.35,166.3,4.38]
[1729896225523,9.23010785,166.33,166.3,4.38]
[1729896226417,9.23010785,166.33,166.3,7.3916]
[1729896226817,9.23010785,166.33,166.31,4.38]
[1729896227620,9.23010785,166.33,166.32,1.5055831]
[1729896232728,3.0108,166.34,166.32,1.5055831]
[1729896232931,12.24090785,166.34,166.33,1.5055831]
[1729896233628,3.0108,166.34,166.33,1.5055831]
[1729896233826,9.23010785,166.36,166.33,4.5164831]
[1729896234035,9.23010785,166.36,166.34,1.5055831]
[1729896234223,9.23010785,166.36,166.33,3.0109]
[1729896234424,9.23010785,166.36,166.34,1.50556586]
[1729896234631,9.23010785,166.36,166.33,3.0109]
[1729896234924,9.23010785,166.36,166.34,1.50557166]
[1729896235120,12.24060785,166.36,166.31,13.61010785]
[1729896235328,9.23010785,166.36,166.33,3.0109]
[1729896235532,9.23010785,166.36,166.34,1.50557166]
[1729896235829,9.23010785,166.36,166.33,3.0109]
[1729896236034,9.23010785,166.36,166.34,1.50548925]
[1729896236222,12.24060785,166.36,166.33,3.0109]
[1729896236427,12.24060785,166.36,166.34,1.50551032]
[1729896236633,12.24060785,166.36,166.33,3.0109]
[1729896236827,12.24060785,166.36,166.34,1.50551537]
[1729896237027,12.24060785,166.36,166.33,3.0109]
[1729896237228,12.24060785,166.36,166.34,1.5055166]
[1729896237429,12.24060785,166.36,166.33,3.0109]
[1729896237831,12.24060785,166.36,166.34,1.5055098]
[1729896238031,3.0105,166.36,166.33,3.0109]
[1729896238239,12.24060785,166.36,166.34,1.50548712]
[1729896238436,12.24060785,166.36,166.33,3.0109]
[1729896238739,12.24060785,166.36,166.34,1.50547318]
[1729896238939,12.24060785,166.36,166.33,3.0109]
[1729896239138,12.24060785,166.36,166.34,1.50547756]
[1729896239441,12.24060785,166.36,166.33,3.0109]
[1729896239630,12.24060785,166.36,166.34,1.50547756]
[1729896239837,12.24060785,166.36,166.33,3.0109]
[1729896240134,12.24060785,166.36,166.34,1.50547756]
[1729896240335,12.24060785,166.36,166.33,3.0109]
[1729896240541,12.24060785,166.36,166.34,1.50547756]
[1729896240858,12.24060785,166.36,166.33,3.0109]
[1729896241045,12.24060785,166.36,166.34,1.50547756]
[1729896241230,12.24060785,166.36,166.33,3.0109]
[1729896241431,12.24060785,166.36,166.34,1.50547756]
[1729896241636,12.24060785,166.36,166.33,3.0109]
[1729896241827,12.24060785,166.36,166.34,1.50547756]
[1729896242031,12.24060785,166.36,166.33,3.0109]
[1729896242238,12.24060785,166.36,166.34,1.50546348]
[1729896242437,12.24060785,166.36,166.33,3.0109]
[1729896242638,12.24060785,166.36,166.34,1.50546224]
[1729896242833,12.24060785,166.36,166.32,3.0111]
[1729896243032,12.24060785,166.36,166.33,1.5054926]
[1729896243229,12.24060785,166.36,166.34,1.5054926]
[1729896243427,12.24060785,166.36,166.32,3.0111]
[1729896243629,12.24060785,166.36,166.33,1.50545025]
[1729896243931,12.24060785,166.36,166.32,3.0111]
[1729896244140,9.23010785,166.36,166.33,1.50545518]
[1729896244330,3.0107,166.35,166.34,1.50545518]
[1729896247935,3.0107,166.35,166.34,1.50551312]
[1729896248336,12.24080785,166.35,166.34,1.50551312]
[1729896248644,12.24080785,166.35,166.32,3.0111]
[1729896248943,12.24080785,166.35,166.33,1.50552447]
[1729896249140,9.23010785,166.34,166.22,9.23010785]
[1729896249335,9.23010785,166.24,166.21,5.7036]
[1729896250240,9.23010785,166.29,166.23,9.23010785]
[1729896251141,9.23010785,166.28,166.22,9.23010785]
[1729896251348,1.3369,166.33,166.25,9.23010785]
[1729896251544,9.23010785,166.31,166.26,4.38]
[1729896252243,9.23010785,166.31,166.27,3.012]
[1729896252444,9.23010785,166.31,166.26,4.38]
[1729896254047,12.24160785,166.31,166.26,7.3921]
[1729896257450,12.24190785,166.29,166.26,4.38]
[1729896262153,3.0118,166.29,166.26,4.38]
[1729896262448,1.2325,166.37,166.28,9.23010785]
[1729896262653,9.23010785,166.36,166.29,9.23010785]
[1729896262850,9.23010785,166.36,166.3,4.38]
[1729896263849,3.0107,166.35,166.31,3.0113]
[1729896265474,12.24080785,166.35,166.31,3.0113]
[1729896266247,1.2325,166.37,166.3,4.38]
[1729896266555,9.23010785,166.34,166.3,4.38]
[1729896267457,3.011,166.33,166.3,7.3914]
[1729896270468,12.24100785,166.34,166.3,7.3914]
[1729896270756,9.23010785,166.35,166.3,13.61010785]
[1729896271554,12.24110785,166.34,166.3,3.0114]
[1729896271760,9.23010785,166.32,166.26,4.38]
[1729896272163,3.0115,166.31,166.27,3.012]
[1729896272961,9.23010785,166.32,166.27,9.23010785]
[1729896273162,12.24130785,166.33,166.29,3.0117]
[1729896273563,9.23010785,166.33,166.28,9.23010785]
[1729896274357,9.23010785,166.35,166.3,9.23010785]
[1729896274563,9.23010785,166.35,166.31,4.38]
[1729896275269,12.24090785,166.35,166.31,7.3913]
[1729896280466,12.24130785,166.32,166.31,4.38]
[1729896280669,9.23010785,166.32,166.28,4.38]
[1729896280973,3.0117,166.29,166.28,4.38]
[1729896281204,9.23010785,166.29,166.25,4.38]
[1729896281360,1.2732,166.33,166.25,4.38]
[1729896281361,9.23010785,166.27,166.25,4.38]
[1729896287375,3.0124,166.26,166.23,4.38]
[1729896287575,3.0124,166.26,166.24,1.50630719]
[1729896287874,3.0124,166.26,166.23,4.38]
[1729896288070,3.0124,166.26,166.24,1.50629593]
[1729896288274,3.0124,166.26,166.25,1.50629593]
[1729896288479,3.0124,166.26,166.23,4.38]
[1729896288668,3.0124,166.26,166.24,1.50628946]
[1729896288872,3.0124,166.26,166.23,4.38]
[1729896289071,3.0124,166.26,166.24,1.50628946]
[1729896289278,3.0124,166.26,166.25,1.50628946]
[1729896290977,1.2732,166.33,166.25,1.50628946]
[1729896291174,12.24220785,166.27,166.23,7.3928]
[1729896291375,12.24220785,166.27,166.24,1.50629583]
[1729896291580,12.24220785,166.27,166.23,7.3928]
[1729896291779,12.24220785,166.27,166.24,1.50629627]
[1729896291981,12.24220785,166.27,166.23,7.3928]
[1729896292475,12.24220785,166.27,166.24,1.50629627]
[1729896292682,12.24220785,166.27,166.25,1.50629627]
[1729896292883,12.24220785,166.27,166.23,7.3928]
[1729896293184,12.24220785,166.27,166.24,1.50629627]
[1729896293372,12.24220785,166.27,166.23,7.3928]
[1729896295184,3.0121,166.27,166.23,7.3928]
[1729896295383,9.23010785,166.26,166.23,7.3928]
[1729896295689,9.23010785,166.26,166.23,7.3927]
[1729896296191,3.0121,166.27,166.23,7.3927]
[1729896296372,9.23010785,166.26,166.23,7.3927]
[1729896296682,12.24260785,166.26,166.23,4.38]
[1729896298390,3.0125,166.26,166.23,4.38]
[1729896298687,12.24260785,166.26,166.23,4.38]
[1729896299775,9.23010785,166.26,166.23,4.38]
[1729896299980,3.0125,166.25,166.23,4.38]
[1729896300484,9.23010785,166.24,166.16,10.44320785]
[1729896300789,12.24310785,166.22,166.18,3.0136]
[1729896301085,3.0134,166.2,166.19,1.50642396]
[1729896301279,4.38,166.25,166.14,7.3943]
[1729896301486,9.23010785,166.18,166.15,1.50679758]
[1729896301688,9.23010785,166.18,166.16,1.50679758]
[1729896301876,9.23010785,166.18,166.17,1.50679758]
[1729896302375,9.23010785,166.18,166.14,7.3943]
[1729896302784,12.24370785,166.19,166.15,1.50691254]
[1729896303087,12.24370785,166.19,166.16,1.50691254]
[1729896303391,12.24370785,166.19,166.14,16.62440785]
[1729896303590,12.24370785,166.19,166.15,1.50691334]
[1729896303880,3.8166,166.25,166.16,1.50691334]
[1729896304084,3.0131,166.22,166.17,9.23010785]
[1729896304292,3.0131,166.22,166.18,4.38]
[1729896304981,9.23010785,166.21,166.18,4.38]
[1729896306090,9.23010785,166.21,166.18,7.3937]
[1729896307591,3.0131,166.22,166.18,7.3937]
[1729896307891,12.24320785,166.22,166.18,4.38]
[1729896308084,12.24320785,166.22,166.19,3.0135]
[1729896308280,12.24280785,166.24,166.18,13.61010785]
[1729896308481,9.23010785,166.25,166.2,9.23010785]
[1729896308693,9.23010785,166.25,166.22,3.0129]
[1729896308892,9.23010785,166.25,166.19,1.50669741]
[1729896309187,9.23010785,166.24,166.19,9.23010785]
[1729896310493,9.23010785,166.24,166.21,3.0131]
[1729896311497,3.013,166.23,166.18,7.3936]
[1729896311689,9.23010785,166.22,166.18,7.3936]
[1729896312502,12.24330785,166.22,166.18,7.3936]
[1729896314493,9.23010785,166.22,166.18,4.38]
[1729896314698,3.0133,166.21,166.18,4.38]
[1729896315095,3.0131,166.22,166.18,7.3937]
[1729896316397,9.23010785,166.24,166.18,4.38]
[1729896316587,3.0132,166.21,166.18,4.38]
[1729896317101,9.23010785,166.2,166.17,4.38]
[1729896317397,9.23010785,166.19,166.17,4.38]
[1729896317700,9.23010785,166.19,166.14,8.9014246]
[1729896317901,9.23010785,166.19,166.15,1.5069246]
[1729896318197,3.0138,166.18,166.14,7.3945]
[1729896318399,3.0138,166.18,166.15,1.50697978]
[1729896318589,3.0138,166.18,166.14,7.3945]
[1729896318792,3.0138,166.18,166.15,1.50698656]
[1729896318995,3.0138,166.18,166.14,7.3945]
[1729896319194,3.0138,166.18,166.15,1.50698127]
[1729896319399,3.0138,166.18,166.14,7.3945]
[1729896319701,3.0138,166.18,166.15,1.50698127]
[1729896319902,3.0138,166.18,166.14,7.3945]
[1729896320097,3.0138,166.18,166.15,1.50698831]
[1729896320299,9.23010785,166.19,166.14,4.38]
[1729896320501,12.24370785,166.19,166.15,4.52128831]
[1729896320704,12.24370785,166.19,166.15,3.0143]
[1729896322404,12.24370785,166.19,166.15,4.52128127]
[1729896323804,12.24370785,166.19,166.15,3.0143]
[1729896325502,3.0136,166.19,166.15,3.0143]
[1729896325802,12.24370785,166.19,166.15,3.0143]
[1729896326391,12.24370785,166.19,166.15,4.52130527]
[1729896326596,3.0131,166.22,166.17,3.0138]
[1729896326801,9.23010785,166.23,166.18,4.38]
[1729896327394,12.24290785,166.23,166.19,3.0135]
[1729896330105,3.0122,166.27,166.23,3.0128]
[1729896330301,9.23010785,166.27,166.22,4.38]
[1729896331005,1.249,166.29,166.22,4.38]
[1729896331209,1.249,166.29,166.23,9.23010785]
[1729896331410,10.47910785,166.29,166.23,9.23010785]
[1729896331603,13.49100785,166.29,166.24,3.0125]
[1729896331804,12.24200785,166.29,166.23,9.23010785]
[1729896332210,2.5701,166.31,166.24,9.23010785]
[1729896332211,9.23010785,166.3,166.24,9.23010785]
[1729896333311,12.24180785,166.3,166.26,3.0122]
[1729896333514,12.24180785,166.3,166.26,7.3922]
[1729896333809,3.0109,166.34,166.28,9.23010785]
[1729896334199,9.23010785,166.35,166.3,3.0114]
[1729896334404,12.24070785,166.36,166.31,4.38]
[1729896335315,3.0107,166.35,166.31,7.3913]
[1729896336608,4.38,166.43,166.31,4.38]
[1729896336914,12.24060785,166.37,166.32,12.24130785]
[1729896337108,9.23010785,166.37,166.32,12.24130785]
[1729896337307,9.23010785,166.38,166.32,12.24130785]
[1729896338116,3.0104,166.37,166.32,12.24130785]
[1729896338412,3.0104,166.37,166.33,3.011]
[1729896338813,3.0105,166.36,166.33,3.011]
[1729896339818,3.0105,166.36,166.34,4.38]
[1729896341206,3.0105,166.36,166.33,4.36]
[1729896342206,3.0108,166.34,166.33,4.36]
[1729896343419,9.23010785,166.34,166.31,4.36]
[1729896343616,9.23010785,166.32,166.31,4.36]
[1729896343914,12.24130785,166.32,166.29,4.36]
[1729896345311,3.0112,166.32,166.29,4.36]
[1729896349019,9.23010785,166.31,166.29,4.36]
[1729896351326,9.23010785,166.31,166.29,7.3717]
[1729896351525,9.23010785,166.31,166.29,4.36]
[1729896352429,3.0113,166.32,166.29,4.36]
[1729896361438,3.0113,166.32,166.29,7.3717]
[1729896364437,12.24120785,166.33,166.29,7.3717]
[1729896366841,3.0112,166.32,166.29,7.3717]
[1729896368940,3.0112,166.32,166.29,4.36]
[1729896373354,3.0112,166.32,166.28,3.0118]
[1729896373545,3.0112,166.32,166.29,4.36]
[1729896374139,9.23010785,166.33,166.29,4.36]
[1729896374341,3.0116,166.3,166.29,4.36]
[1729896375743,3.0114,166.32,166.29,4.36]
[1729896376248,3.0112,166.32,166.29,4.36]
[1729896377946,9.23010785,166.33,166.28,4.36]
[1729896378142,3.0114,166.31,166.28,4.36]
[1729896379239,3.0117,166.29,166.28,4.36]
[1729896379641,3.0117,166.29,166.25,9.23010785]
[1729896379947,3.0119,166.28,166.26,4.36]
[1729896380452,3.0119,166.28,166.24,3.0125]
[1729896380453,9.23010785,166.3,166.24,3.0125]
[1729896380644,9.23010785,166.28,166.23,9.23010785]
[1729896380857,9.23010785,166.27,166.24,4.36]
[1729896381451,3.0124,166.26,166.24,4.36]
[1729896385854,3.0124,166.25,166.21,3.0131]
[1729896386072,3.0124,166.25,166.23,4.36]
[1729896386452,3.0124,166.25,166.22,4.36]
[1729896390160,3.0124,166.25,166.21,3.0131]
[1729896390464,3.0124,166.25,166.22,5.86649236]
[1729896390659,3.0124,166.25,166.22,4.36]
[1729896391366,3.0128,166.23,166.22,4.36]
[1729896391566,3.0128,166.23,166.19,58.5]
[1729896391567,9.23010785,166.23,166.19,58.5]
[1729896391760,9.23010785,166.23,166.16,3.8633]
[1729896391761,9.23010785,166.21,166.2,1.50658375]
[1729896391966,9.23010785,166.21,166.16,9.23010785]
[1729896392168,9.23010785,166.21,166.17,5.86682142]
[1729896392368,9.23010785,166.21,166.18,1.50682142]
[1729896392678,9.23010785,166.21,166.17,7.3739]
[1729896392867,9.23010785,166.21,166.18,1.50685236]
[1729896393171,9.23010785,166.21,166.19,1.50686312]
[1729896393471,9.23010785,166.21,166.17,3.0139]
[1729896393674,9.23010785,166.21,166.18,1.50685608]
[1729896393970,9.23010785,166.21,166.17,7.3739]
[1729896394170,9.23010785,166.21,166.18,1.50685732]
[1729896394370,12.24330785,166.21,166.19,1.50685732]